fUST/lending_fUST_20250729
["ID","MTS","AMOUNT","RATE_DAILY","PERIOD"]
[375826758,1753753853210,-576.80708773,0.00020273,2]
[375826760,1753753853220,-460.0,0.00020273,2]
[375826762,1753753853229,-460.0,0.00020273,2]
[375826764,1753753853239,-460.0,0.00020273,2]
[375826766,1753753853249,-460.0,0.00020273,2]
[375826768,1753753853259,-460.0,0.00020273,2]
[375826770,1753753853272,-504.73,0.00020273,2]
[375826772,1753753853281,-460.0,0.00020273,2]
[375826774,1753753853291,-460.0,0.00020273,2]
[375826776,1753753853302,-543.91,0.00020273,2]
[375826778,1753753853312,-460.0,0.00020273,2]
[375826780,1753753853322,-460.0,0.00020273,2]
[375826782,1753753853331,-468.26229708,0.00020273,2]
[375826784,1753753853342,-460.0,0.00020273,2]
[375826786,1753753853351,-460.0,0.00020273,2]
[375826788,1753753853361,-466.98,0.00020273,2]
[375826790,1753753853370,-592.5,0.00020273,2]
[375826792,1753753853380,-687.98,0.00020273,2]
[375826794,1753753853390,-480.26482156,0.00020273,2]
[375826813,1753753853563,-4.71517844,0.00020273,2]
[375826815,1753753853574,-460.0,0.00020273,2]
[375826817,1753753853583,-461.64,0.00020273,2]
[375826819,1753753853593,-460.0,0.00020547,2]
[375826821,1753753853604,-460.0,0.00020547,2]
[375826823,1753753853614,-460.0,0.00020547,2]
[375826825,1753753853624,-460.0,0.00020547,2]
[375826827,1753753853634,-463.34939729,0.00020547,2]
[375826829,1753753853644,-551.16368715,0.00020547,2]
[375826831,1753753853655,-460.0,0.00020547,2]
[375826833,1753753853665,-460.0,0.00020547,2]
[375826835,1753753853675,-283.00393961,0.00020547,2]
[375826837,1753753853685,-460.0,0.00020547,2]
[375826839,1753753853695,-461.65963896,0.00020547,2]
[375826841,1753753853705,-151.0,0.00020547,2]
[375826843,1753753853714,-151.0,0.00020547,2]
[375826845,1753753853727,-460.0,0.00020547,2]
[375826847,1753753853737,-460.0,0.00020547,2]
[375826849,1753753853747,-1337.37,0.00020547,2]
[375826851,1753753853757,-460.0,0.00020547,2]
[375826853,1753753853766,-280.66267025,0.00020547,2]
[375826855,1753753853776,-460.0,0.00020547,2]
[375826857,1753753853786,-462.49825127,0.00020547,2]
[375826859,1753753853796,-492.37702136,0.00020547,2]
[375826861,1753753853806,-465.61557557,0.00020547,2]
[375826863,1753753853816,-460.0,0.00020547,2]
[375826865,1753753853825,-460.0,0.00020547,2]
[375826867,1753753853835,-463.30973023,0.00020547,2]
[375826869,1753753853844,-460.0,0.00020547,2]
[375826871,1753753853854,-460.0,0.00020547,2]
[375826873,1753753853864,-464.25073,0.00020547,2]
[375826875,1753753853873,-633.03,0.00020547,2]
[375826877,1753753853883,-462.61036104,0.00020547,2]
[375826879,1753753853893,-460.0,0.00020547,2]
[375826881,1753753853903,-460.0,0.00020547,2]
[375826883,1753753853912,-460.0,0.00020547,2]
[375826885,1753753853923,-460.0,0.00020547,2]
[375826887,1753753853932,-460.0,0.00020547,2]
[375826889,1753753853942,-460.0,0.00020547,2]
[375826891,1753753853951,-460.0,0.00020547,2]
[375826893,1753753853961,-460.0,0.00020547,2]
[375826895,1753753853970,-650.21,0.00020547,2]
[375826897,1753753853979,-460.0,0.00020547,2]
[375826899,1753753853990,-460.0,0.00020547,2]
[375826901,1753753853999,-460.0,0.00020547,2]
[375826902,1753753854009,-460.0,0.00020547,2]
[375826905,1753753854019,-460.0,0.00020547,2]
[375826907,1753753854028,-460.0,0.00020547,2]
[375826908,1753753854038,-568.25130921,0.00020547,2]
[375826910,1753753854047,-460.0,0.00020547,2]
[375826912,1753753854058,-460.0,0.00020547,2]
[375826914,1753753854068,-609.61,0.00020547,2]
[375826916,1753753854077,-471.92498589,0.00020547,2]
[375826918,1753753854087,-460.0,0.00020547,2]
[375826920,1753753854097,-460.0,0.00020547,2]
[375826922,1753753854106,-469.98702605,0.00020547,2]
[375826924,1753753854116,-5391.93,0.00020547,2]
[375826926,1753753854125,-188.81518582,0.00020547,2]
[375826928,1753753854135,-460.0,0.00020547,2]
[375826930,1753753854145,-1256.18,0.00020547,2]
[375826932,1753753854154,-566.46456251,0.00020547,2]
[375826934,1753753854164,-460.0,0.00020547,2]
[375826936,1753753854173,-508.18216135,0.00020547,2]
[375826938,1753753854183,-460.0,0.00020547,2]
[375826940,1753753854193,-460.0,0.00020547,2]
[375826942,1753753854202,-460.0,0.00020547,2]
[375826944,1753753854211,-460.0,0.00020547,2]
[375826946,1753753854221,-460.0,0.00020547,2]
[375826948,1753753854231,-2142.14,0.00020547,2]
[375826950,1753753854241,-460.0,0.00020547,2]
[375826952,1753753854252,-460.0,0.00020547,2]
[375826954,1753753854265,-460.0,0.00020547,2]
[375826956,1753753854275,-460.0,0.00020547,2]
[375826958,1753753854287,-460.0,0.00020547,2]
[375826960,1753753854296,-573.16,0.00020547,2]
[375826962,1753753854307,-461.97,0.00020547,2]
[375826964,1753753854317,-460.0,0.00020547,2]
[375826966,1753753854327,-460.0,0.00020547,2]
[375826968,1753753854337,-465.76955228,0.00020547,2]
[375826969,1753753854347,-555.00328478,0.00020547,2]
[375826971,1753753854359,-460.0,0.00020547,2]
[375826973,1753753854368,-461.94072444,0.00020547,2]
[375826975,1753753854379,-460.0,0.00020547,2]
[375826977,1753753854389,-460.0,0.00020547,2]
[375826979,1753753854400,-460.0,0.00020547,2]
[375826981,1753753854410,-460.0,0.00020547,2]
[375826983,1753753854420,-1126.31,0.00020547,2]
[375826985,1753753854431,-460.0,0.00020547,2]
[375826987,1753753854441,-460.0,0.00020547,2]
[375826989,1753753854450,-641.3,0.00020547,2]
[375826991,1753753854460,-1466.07,0.00020547,2]
[375826993,1753753854469,-203.05501029,0.00020547,2]
[375826995,1753753854479,-460.0,0.00020547,2]
[375826997,1753753854488,-460.0,0.00020547,2]
[375826999,1753753854498,-460.0,0.00020547,2]
[375827000,1753753854508,-1416.76,0.00020547,2]
[375827002,1753753854518,-1961.96,0.00020547,2]
[375827004,1753753854528,-460.0,0.00020547,2]
[375827006,1753753854538,-460.0,0.00020547,2]
[375827008,1753753854548,-460.0,0.00020547,2]
[375827010,1753753854559,-460.0,0.00020547,2]
[375827012,1753753854569,-460.0,0.00020547,2]
[375827014,1753753854580,-460.0,0.00020547,2]
[375827016,1753753854590,-460.0,0.00020547,2]
[375827018,1753753854600,-233.58690594,0.00020547,2]
[375827020,1753753854609,-460.0,0.00020547,2]
[375827022,1753753854619,-460.0,0.00020547,2]
[375827023,1753753854629,-432.16421492,0.00020547,2]
[375827025,1753753854638,-1570.48,0.00020547,2]
[375827027,1753753854648,-687.97,0.00020547,2]
[375827029,1753753854658,-460.0,0.00020547,2]
[375827031,1753753854667,-460.0,0.00020547,2]
[375827033,1753753854677,-1981.62,0.00020547,2]
[375827035,1753753854687,-460.0,0.00020547,2]
[375827037,1753753854697,-460.0,0.00020547,2]
[375827039,1753753854706,-460.0,0.00020547,2]
[375827041,1753753854715,-1320.75,0.00020547,2]
[375827043,1753753854724,-4096.91,0.00020547,2]
[375827044,1753753854734,-471.90905699,0.00020547,2]
[375827046,1753753854744,-1488.78,0.00020547,2]
[375827048,1753753854754,-460.0,0.00020547,2]
[375827050,1753753854763,-1227.47,0.00020547,2]
[375827052,1753753854772,-460.0,0.00020547,2]
[375827054,1753753854782,-460.0,0.00020547,2]
[375827056,1753753854791,-460.0,0.00020547,2]
[375827058,1753753854803,-473.41383789,0.00020547,2]
[375827060,1753753854813,-460.0,0.00020547,2]
[375827061,1753753854823,-504.73,0.00020547,2]
[375827063,1753753854832,-460.0,0.00020547,2]
[375827065,1753753854842,-460.0,0.00020547,2]
[375827067,1753753854852,-543.91,0.00020547,2]
[375827069,1753753854862,-460.0,0.00020547,2]
[375827071,1753753854871,-460.0,0.00020547,2]
[375827073,1753753854881,-460.0,0.00020547,2]
[375827075,1753753854891,-504.35843271,0.00020547,2]
[375827077,1753753854901,-466.98,0.00020547,2]
[375827079,1753753854912,-592.5,0.00020547,2]
[375827081,1753753854921,-687.98,0.00020547,2]
[375827082,1753753854931,-484.98,0.00020547,2]
[375827084,1753753854941,-446.66479869,0.00020547,2]
[375827086,1753753854950,-461.64,0.00020547,2]
[375827088,1753753854960,-267.05403903,0.00020779,2]
[375827090,1753753854970,-1000.0,0.000208,2]
[375827092,1753753854979,-152.53959,0.00020821,2]
[375827094,1753753854988,-151.0,0.00020821,2]
[375827096,1753753854998,-460.0,0.00020821,2]
[375827098,1753753855008,-460.0,0.00020821,2]
[375827112,1753753855149,-460.0,0.00020821,2]
[375827114,1753753855162,-460.0,0.00020821,2]
[375827116,1753753855174,-460.0,0.00020821,2]
[375827118,1753753855183,-460.0,0.00020821,2]
[375827120,1753753855192,-460.0,0.00020821,2]
[375827122,1753753855202,-1337.37,0.00020821,2]
[375827124,1753753855211,-460.0,0.00020821,2]
[375827126,1753753855220,-460.0,0.00020821,2]
[375827128,1753753855230,-536.44884136,0.00020821,2]
[375827130,1753753855240,-460.0,0.00020821,2]
[375827132,1753753855249,-466.23895211,0.00020821,2]
[375827134,1753753855259,-633.03,0.00020821,2]
[375827136,1753753855271,-460.0,0.00020821,2]
[375827137,1753753855281,-460.0,0.00020821,2]
[375827139,1753753855291,-460.0,0.00020821,2]
[375827141,1753753855300,-460.0,0.00020821,2]
[375827143,1753753855311,-460.0,0.00020821,2]
[375827145,1753753855320,-460.0,0.00020821,2]
[375827147,1753753855330,-460.0,0.00020821,2]
[375827149,1753753855340,-460.0,0.00020821,2]
[375827151,1753753855350,-650.21,0.00020821,2]
[375827153,1753753855359,-460.0,0.00020821,2]
[375827155,1753753855369,-460.0,0.00020821,2]
[375827156,1753753855378,-460.0,0.00020821,2]
[375827158,1753753855388,-460.0,0.00020821,2]
[375827160,1753753855397,-460.0,0.00020821,2]
[375827162,1753753855406,-460.0,0.00020821,2]
[375827164,1753753855416,-460.0,0.00020821,2]
[375827166,1753753855425,-609.61,0.00020821,2]
[375827168,1753753855435,-460.0,0.00020821,2]
[375827170,1753753855445,-460.0,0.00020821,2]
[375827172,1753753855455,-5391.93,0.00020821,2]
[375827174,1753753855464,-151.857537,0.00020821,2]
[375827176,1753753855474,-460.0,0.00020821,2]
[375827178,1753753855483,-1256.18,0.00020821,2]
[375827180,1753753855492,-151.0,0.00020821,2]
[375827181,1753753855502,-460.0,0.00020821,2]
[375827183,1753753855512,-460.0,0.00020821,2]
[375827185,1753753855522,-460.0,0.00020821,2]
[375827187,1753753855532,-460.0,0.00020821,2]
[375827189,1753753855542,-460.0,0.00020821,2]
[375827191,1753753855555,-469.23866829,0.00020821,2]
[375827193,1753753855568,-2142.14,0.00020821,2]
[375827195,1753753855578,-460.0,0.00020821,2]
[375827197,1753753855588,-460.0,0.00020821,2]
[375827199,1753753855598,-460.0,0.00020821,2]
[375827201,1753753855608,-460.0,0.00020821,2]
[375827203,1753753855618,-460.0,0.00020821,2]
[375827205,1753753855627,-573.16,0.00020821,2]
[375827207,1753753855637,-461.97,0.00020821,2]
[375827208,1753753855647,-478.4309536,0.00020821,2]
[375827210,1753753855656,-460.0,0.00020821,2]
[375827212,1753753855666,-460.0,0.00020821,2]
[375827214,1753753855676,-460.0,0.00020821,2]
[375827216,1753753855685,-460.0,0.00020821,2]
[375827218,1753753855695,-460.0,0.00020821,2]
[375827220,1753753855705,-460.0,0.00020821,2]
[375827222,1753753855714,-1126.31,0.00020821,2]
[375827224,1753753855723,-460.0,0.00020821,2]
[375827226,1753753855733,-460.0,0.00020821,2]
[375827228,1753753855742,-641.3,0.00020821,2]
[375827230,1753753855751,-1466.07,0.00020821,2]
[375827232,1753753855760,-460.0,0.00020821,2]
[375827234,1753753855770,-460.0,0.00020821,2]
[375827235,1753753855780,-460.0,0.00020821,2]
[375827237,1753753855790,-1961.96,0.00020821,2]
[375827239,1753753855800,-460.0,0.00020821,2]
[375827241,1753753855811,-460.0,0.00020821,2]
[375827243,1753753855820,-1416.76,0.00020821,2]
[375827245,1753753855830,-460.0,0.00020821,2]
[375827247,1753753855839,-460.0,0.00020821,2]
[375827249,1753753855848,-469.66996714,0.00020821,2]
[375827251,1753753855858,-460.0,0.00020821,2]
[375827253,1753753855868,-460.0,0.00020821,2]
[375827254,1753753855877,-460.0,0.00020821,2]
[375827256,1753753855886,-475.07432688,0.00020821,2]
[375827258,1753753855896,-1570.48,0.00020821,2]
[375827260,1753753855905,-687.97,0.00020821,2]
[375827262,1753753855914,-460.0,0.00020821,2]
[375827264,1753753855924,-606.55167743,0.00020821,2]
[375827265,1753753855933,-246.71041,0.00020821,2]
[375827266,1753753855943,-1981.62,0.00020821,2]
[375827267,1753753855952,-460.0,0.00020821,2]
[375827268,1753753855962,-246.71041,0.00020821,2]
[375827269,1753753855971,-460.0,0.00020821,2]
[375827270,1753753855981,-460.0,0.00020821,2]
[375827271,1753753855990,-1320.75,0.00020821,2]
[375827272,1753753856000,-4096.91,0.00020821,2]
[375827273,1753753856010,-1488.78,0.00020821,2]
[375827274,1753753856020,-460.0,0.00020821,2]
[375827275,1753753856030,-1227.47,0.00020821,2]
[375827276,1753753856039,-460.0,0.00020821,2]
[375827277,1753753856048,-460.0,0.00020821,2]
[375827278,1753753856059,-426.05373384,0.00020821,2]
[375827279,1753753856068,-151.0,0.00020821,2]
[375827280,1753753856078,-504.73,0.00020821,2]
[375827281,1753753856088,-460.0,0.00020821,2]
[375827282,1753753856098,-460.0,0.00020821,2]
[375827283,1753753856107,-543.91,0.00020821,2]
[375827284,1753753856117,-460.0,0.00020821,2]
[375827285,1753753856126,-460.0,0.00020821,2]
[375827286,1753753856135,-151.0,0.00020821,2]
[375827287,1753753856144,-460.0,0.00020821,2]
[375827288,1753753856154,-466.98,0.00020821,2]
[375827289,1753753856163,-592.5,0.00020821,2]
[375827290,1753753856173,-687.98,0.00020821,2]
[375827291,1753753856182,-484.98,0.00020821,2]
[375827292,1753753856191,-461.64,0.00020821,2]
[375827293,1753753856201,-460.0,0.00021095,2]
[375827294,1753753856210,-460.0,0.00021095,2]
[375827295,1753753856220,-460.0,0.00021095,2]
[375827296,1753753856237,-529.71072008,0.00021095,2]
[375827297,1753753856256,-460.0,0.00021095,2]
[375827298,1753753856273,-460.0,0.00021095,2]
[375827299,1753753856289,-460.0,0.00021095,2]
[375827300,1753753856307,-1337.37,0.00021095,2]
[375827301,1753753856323,-464.6774423,0.00021095,2]
[375827302,1753753856339,-460.0,0.00021095,2]
[375827303,1753753856357,-460.0,0.00021095,2]
[375827304,1753753856373,-633.03,0.00021095,2]
[375827305,1753753856388,-460.0,0.00021095,2]
[375827306,1753753856403,-284.59094366,0.00021095,2]
[375827307,1753753856418,-460.0,0.00021095,2]
[375827308,1753753856434,-460.0,0.00021095,2]
[375827309,1753753856448,-460.0,0.00021095,2]
[375827310,1753753856461,-460.0,0.00021095,2]
[375827311,1753753856476,-151.29235935,0.00021095,2]
[375827312,1753753856491,-460.0,0.00021095,2]
[375827313,1753753856507,-650.21,0.00021095,2]
[375827314,1753753856525,-460.0,0.00021095,2]
[375827315,1753753856542,-460.0,0.00021095,2]
[375827316,1753753856561,-151.0,0.00021095,2]
[375827317,1753753856573,-460.0,0.00021095,2]
[375827318,1753753856586,-460.0,0.00021095,2]
[375827319,1753753856602,-225.0384937,0.00021095,2]
[375827320,1753753856618,-460.0,0.00021095,2]
[375827321,1753753856630,-460.0,0.00021095,2]
[375827322,1753753856644,-460.0,0.00021095,2]
[375827323,1753753856660,-609.61,0.00021095,2]
[375827324,1753753856672,-460.0,0.00021095,2]
[375827325,1753753856684,-460.0,0.00021095,2]
[375827326,1753753856698,-151.0,0.00021095,2]
[375827327,1753753856711,-294.361666,0.00021095,2]
[375827328,1753753856724,-151.0,0.00021095,2]
[375827329,1753753856738,-151.0,0.00021095,2]
[375827330,1753753856751,-5391.93,0.00021095,2]
[375827331,1753753856764,-460.0,0.00021095,2]
[375827334,1753753856779,-1256.18,0.00021095,2]
[375827336,1753753856792,-460.0,0.00021095,2]
[375827338,1753753856805,-460.0,0.00021095,2]
[375827340,1753753856818,-460.0,0.00021095,2]
[375827343,1753753856832,-460.0,0.00021095,2]
[375827345,1753753856846,-460.0,0.00021095,2]
[375827347,1753753856859,-167.415301,0.00021095,2]
[375827350,1753753856873,-2142.14,0.00021095,2]
[375827352,1753753856886,-460.0,0.00021095,2]
[375827354,1753753856899,-167.415301,0.00021095,2]
[375827357,1753753856913,-460.0,0.00021095,2]
[375827359,1753753856926,-460.0,0.00021095,2]
[375827362,1753753856940,-460.0,0.00021095,2]
[375827364,1753753856954,-464.43303059,0.00021095,2]
[375827367,1753753856969,-573.16,0.00021095,2]
[375827369,1753753856983,-461.97,0.00021095,2]
[375827371,1753753856996,-460.0,0.00021095,2]
[375827374,1753753857011,-460.0,0.00021095,2]
[375827376,1753753857026,-460.0,0.00021095,2]
[375827378,1753753857040,-460.0,0.00021095,2]
[375827381,1753753857055,-460.0,0.00021095,2]
[375827383,1753753857069,-460.0,0.00021095,2]
[375827386,1753753857082,-1126.31,0.00021095,2]
[375827388,1753753857095,-460.0,0.00021095,2]
[375827390,1753753857104,-460.0,0.00021095,2]
[375827392,1753753857114,-641.3,0.00021095,2]
[375827394,1753753857124,-1466.07,0.00021095,2]
[375827396,1753753857134,-460.0,0.00021095,2]
[375827398,1753753857144,-460.0,0.00021095,2]
[375827400,1753753857153,-460.0,0.00021095,2]
[375827402,1753753857163,-460.0,0.00021095,2]
[375827404,1753753857173,-1961.96,0.00021095,2]
[375827405,1753753857182,-460.0,0.00021095,2]
[375827407,1753753857191,-460.0,0.00021095,2]
[375827409,1753753857201,-1416.76,0.00021095,2]
[375827411,1753753857210,-460.0,0.00021095,2]
[375827413,1753753857220,-460.0,0.00021095,2]
[375827415,1753753857230,-460.0,0.00021095,2]
[375827417,1753753857239,-466.47247173,0.00021095,2]
[375827419,1753753857249,-1570.48,0.00021095,2]
[375827421,1753753857259,-687.97,0.00021095,2]
[375827423,1753753857271,-460.0,0.00021095,2]
[375827425,1753753857280,-1981.62,0.00021095,2]
[375827427,1753753857289,-481.84716115,0.00021095,2]
[375827428,1753753857298,-467.64182818,0.00021095,2]
[375827430,1753753857310,-460.0,0.00021095,2]
[375827432,1753753857320,-1320.75,0.00021095,2]
[375827434,1753753857331,-4096.91,0.00021095,2]
[375827436,1753753857341,-1488.78,0.00021095,2]
[375827438,1753753857352,-460.0,0.00021095,2]
[375827440,1753753857363,-1227.47,0.00021095,2]
[375827442,1753753857377,-460.0,0.00021095,2]
[375827444,1753753857389,-460.0,0.00021095,2]
[375827446,1753753857399,-504.73,0.00021095,2]
[375827448,1753753857408,-353.854534,0.00021095,2]
[375827450,1753753857418,-460.0,0.00021095,2]
[375827452,1753753857428,-353.854534,0.00021095,2]
[375827454,1753753857437,-460.0,0.00021095,2]
[375827456,1753753857448,-543.91,0.00021095,2]
[375827458,1753753857457,-460.0,0.00021095,2]
[375827460,1753753857467,-460.0,0.00021095,2]
[375827462,1753753857477,-460.0,0.00021095,2]
[375827464,1753753857486,-466.98,0.00021095,2]
[375827466,1753753857496,-592.5,0.00021095,2]
[375827468,1753753857506,-687.98,0.00021095,2]
[375827470,1753753857516,-484.98,0.00021095,2]
[375827471,1753753857525,-461.64,0.00021095,2]
[375827474,1753753857535,-393.5,0.00021358,4]
[375827475,1753753857545,-457.02906027,0.00021369,2]
[375827507,1753753857845,-460.0,0.00021369,2]
[375827510,1753753857870,-460.0,0.00021369,2]
[375827513,1753753857891,-464.30695093,0.00021369,2]
[375827515,1753753857902,-151.0,0.00021369,2]
[375827517,1753753857912,-151.0,0.00021369,2]
[375827519,1753753857922,-460.0,0.00021369,2]
[375827521,1753753857932,-460.0,0.00021369,2]
[375827523,1753753857942,-1337.37,0.00021369,2]
[375827525,1753753857951,-456.81423613,0.00021369,2]
[375827527,1753753857963,-460.0,0.00021369,2]
[375827529,1753753857972,-633.03,0.00021369,2]
[375827531,1753753857981,-460.0,0.00021369,2]
[375827533,1753753857991,-460.0,0.00021369,2]
[375827535,1753753858000,-460.0,0.00021369,2]
[375827537,1753753858010,-460.0,0.00021369,2]
[375827539,1753753858019,-460.0,0.00021369,2]
[375827541,1753753858028,-460.0,0.00021369,2]
[375827543,1753753858038,-650.21,0.00021369,2]
[375827545,1753753858047,-460.0,0.00021369,2]
[375827547,1753753858056,-460.0,0.00021369,2]
[375827549,1753753858066,-460.0,0.00021369,2]
[375827551,1753753858075,-460.0,0.00021369,2]
[375827553,1753753858084,-460.0,0.00021369,2]
[375827555,1753753858094,-460.0,0.00021369,2]
[375827557,1753753858103,-460.0,0.00021369,2]
[375827559,1753753858112,-609.61,0.00021369,2]
[375827561,1753753858122,-460.0,0.00021369,2]
[375827563,1753753858132,-460.0,0.00021369,2]
[375827565,1753753858141,-5391.93,0.00021369,2]
[375827567,1753753858150,-460.0,0.00021369,2]
[375827568,1753753858160,-1256.18,0.00021369,2]
[375827571,1753753858170,-460.0,0.00021369,2]
[375827573,1753753858179,-460.0,0.00021369,2]
[375827574,1753753858188,-460.0,0.00021369,2]
[375827576,1753753858198,-460.0,0.00021369,2]
[375827578,1753753858209,-460.0,0.00021369,2]
[375827580,1753753858219,-2142.14,0.00021369,2]
[375827582,1753753858229,-460.0,0.00021369,2]
[375827584,1753753858238,-460.0,0.00021369,2]
[375827586,1753753858247,-460.0,0.00021369,2]
[375827588,1753753858257,-460.0,0.00021369,2]
[375827590,1753753858269,-573.16,0.00021369,2]
[375827592,1753753858279,-461.97,0.00021369,2]
[375827594,1753753858289,-460.0,0.00021369,2]
[375827596,1753753858299,-460.0,0.00021369,2]
[375827598,1753753858311,-460.0,0.00021369,2]
[375827600,1753753858321,-460.0,0.00021369,2]
[375827602,1753753858331,-460.0,0.00021369,2]
[375827604,1753753858340,-1126.31,0.00021369,2]
[375827606,1753753858350,-460.0,0.00021369,2]
[375827608,1753753858360,-460.0,0.00021369,2]
[375827610,1753753858370,-641.3,0.00021369,2]
[375827612,1753753858379,-1466.07,0.00021369,2]
[375827614,1753753858389,-460.0,0.00021369,2]
[375827616,1753753858398,-460.0,0.00021369,2]
[375827618,1753753858408,-460.0,0.00021369,2]
[375827620,1753753858417,-460.0,0.00021369,2]
[375827622,1753753858427,-1961.96,0.00021369,2]
[375827624,1753753858436,-460.0,0.00021369,2]
[375827626,1753753858445,-460.0,0.00021369,2]
[375827628,1753753858455,-1416.76,0.00021369,2]
[375827630,1753753858465,-460.0,0.00021369,2]
[375827632,1753753858475,-460.0,0.00021369,2]
[375827634,1753753858484,-460.0,0.00021369,2]
[375827636,1753753858494,-1570.48,0.00021369,2]
[375827638,1753753858503,-687.97,0.00021369,2]
[375827640,1753753858512,-460.0,0.00021369,2]
[375827642,1753753858521,-1981.62,0.00021369,2]
[375827644,1753753858532,-460.0,0.00021369,2]
[375827646,1753753858542,-1320.75,0.00021369,2]
[375827648,1753753858552,-4096.91,0.00021369,2]
[375827650,1753753858562,-1488.78,0.00021369,2]
[375827652,1753753858571,-460.0,0.00021369,2]
[375827654,1753753858580,-1227.47,0.00021369,2]
[375827656,1753753858590,-460.0,0.00021369,2]
[375827658,1753753858599,-460.0,0.00021369,2]
[375827660,1753753858608,-504.73,0.00021369,2]
[375827662,1753753858617,-460.0,0.00021369,2]
[375827664,1753753858627,-460.0,0.00021369,2]
[375827666,1753753858636,-543.91,0.00021369,2]
[375827668,1753753858646,-460.0,0.00021369,2]
[375827670,1753753858655,-460.0,0.00021369,2]
[375827671,1753753858665,-460.0,0.00021369,2]
[375827673,1753753858674,-466.98,0.00021369,2]
[375827675,1753753858683,-592.5,0.00021369,2]
[375827677,1753753858693,-687.98,0.00021369,2]
[375827680,1753753858703,-484.98,0.00021369,2]
[375827681,1753753858712,-461.64,0.00021369,2]
[375827683,1753753858722,-249.70350313,0.000214,2]
[375827685,1753753858732,-162.7066687,0.00021425,2]
[375827687,1753753858741,-586.7215699,0.00021425,2]
[375827689,1753753858751,-160.0754546,0.00021425,2]
[375827691,1753753858760,-578.0900773,0.00021425,2]
[375827693,1753753858769,-160.0754546,0.00021425,2]
[375827695,1753753858778,-578.0900773,0.00021425,2]
[375827697,1753753858789,-159.6986114,0.00021425,2]
[375827699,1753753858800,-578.0900773,0.00021425,2]
[375827701,1753753858811,-200.0,0.00021477,15]
[375827703,1753753858823,-200.0,0.00021477,15]
[375827705,1753753858832,-200.0,0.00021477,15]
[375827707,1753753858842,-200.0,0.00021477,15]
[375827709,1753753858852,-320.0,0.00021477,15]
[375827711,1753753858862,-798.96,0.000215,2]
[375827713,1753753858871,-152518.51,0.000215,2]
[375827715,1753753858881,-273622.2021391,0.000215,2]
[375827717,1753753858900,-6589.10434455,0.000215,2]
[375827718,1753753858912,-1167.13634697,0.000215,2]
[375827727,1753753859084,-460.0,0.00019178,2]
[375827729,1753753859093,-79.99160977,0.00019452,2]
[375827733,1753753859114,-380.00839023,0.00019452,2]
[375827735,1753753859123,-460.0,0.00019726,2]
[375827737,1753753859132,-291.0,0.00021104,2]
[375827739,1753753859142,-1077.01889845,0.000215,2]
[375827741,1753753859153,-1825.00000001,0.000215,2]
[375827786,1753753859592,-405.09006766,0.00019178,2]
[375827788,1753753859602,-122.01187624,0.0002,2]
[375827791,1753753859615,-337.98812376,0.0002,2]
[375827793,1753753859624,-165.84187624,0.00020273,2]